[Event "Titled Tuesday Blitz April 05 Late 2022"]
[White "Ilyasli, Ughur"]
[Black "Harshavardhan G B"]
[WhiteFideId "13416197"]
[BlackFideId "25059009"]
[WhiteElo "2421"]
[BlackElo "2614"]
[Result "0-1"]
[Round "06"]
[TimeControl "180+1"]
[Date "2022.04.06"]
[WhiteClock "0:00:04"]
[BlackClock "0:01:41"]

1. d4 {[%clk 0:03:00]}  Nf6 {[%clk 0:02:59]} 2. c4 {[%clk 0:03:01]}  c5 {[%clk 0:02:58]} 3. d5 {[%clk 0:03:00]}  b5 {[%clk 0:02:59]} 4. cxb5 {[%clk 0:03:00]}  a6 {[%clk 0:02:59]} 5. f3 {[%clk 0:03:01]}  axb5 {[%clk 0:02:54]} 6. e4 {[%clk 0:03:01]}  Qa5+ {[%clk 0:02:52]} 7. Bd2 {[%clk 0:02:55]}  b4 {[%clk 0:02:51]} 8. Na3 {[%clk 0:02:47]}  d6 {[%clk 0:02:51]} 9. Nc4 {[%clk 0:02:42]}  Qc7 {[%clk 0:02:51]} 10. Bd3 {[%clk 0:02:31]}  g6 {[%clk 0:02:50]} 11. Ne2 {[%clk 0:02:29]}  Bg7 {[%clk 0:02:50]} 12. O-O {[%clk 0:02:29]}  O-O {[%clk 0:02:50]} 13. Qc1 {[%clk 0:02:11]}  Nbd7 {[%clk 0:02:49]} 14. Bh6 {[%clk 0:02:10]}  Ba6 {[%clk 0:02:46]} 15. Bxg7 {[%clk 0:02:09]}  Kxg7 {[%clk 0:02:47]} 16. b3 {[%clk 0:02:02]}  Bxc4 {[%clk 0:02:43]} 17. Bxc4 {[%clk 0:02:03]}  Ne5 {[%clk 0:02:43]} 18. f4 {[%clk 0:01:55]}  Nxc4 {[%clk 0:02:40]} 19. Qxc4 {[%clk 0:01:56]}  Ra5 {[%clk 0:02:36]} 20. Ng3 {[%clk 0:01:46]}  Rfa8 {[%clk 0:02:36]} 21. Rf2 {[%clk 0:01:42]}  Nd7 {[%clk 0:02:32]} 22. Qc2 {[%clk 0:01:27]}  f6 {[%clk 0:02:29]} 23. h4 {[%clk 0:01:22]}  c4 {[%clk 0:02:25]} 24. bxc4 {[%clk 0:01:20]}  Nc5 {[%clk 0:02:25]} 25. Qe2 {[%clk 0:01:02]}  b3 {[%clk 0:02:18]} 26. Qg4 {[%clk 0:00:58]}  Rxa2 {[%clk 0:02:15]} 27. Raf1 {[%clk 0:00:54]}  Rxf2 {[%clk 0:02:09]} 28. Rxf2 {[%clk 0:00:53]}  Ra1+ {[%clk 0:02:07]} 29. Kh2 {[%clk 0:00:52]}  Ra2 {[%clk 0:02:07]} 30. Rf1 {[%clk 0:00:48]}  b2 {[%clk 0:02:04]} 31. f5 {[%clk 0:00:42]}  Nd3 {[%clk 0:01:58]} 32. fxg6 {[%clk 0:00:40]}  hxg6 {[%clk 0:01:56]} 33. h5 {[%clk 0:00:39]}  Ne5 {[%clk 0:01:55]} 34. Nf5+ {[%clk 0:00:31]}  Kf8 {[%clk 0:01:54]} 35. Qg3 {[%clk 0:00:19]}  gxf5 {[%clk 0:01:52]} 36. exf5 {[%clk 0:00:18]}  Ra1 {[%clk 0:01:47]} 37. h6 {[%clk 0:00:17]}  e6 {[%clk 0:01:48]} 38. Qh4 {[%clk 0:00:04]}  Kg8 {[%clk 0:01:41]} 0-1


[Site "https://www.chess.com"]

[Event "Titled Tuesday Blitz April 05 Late 2022"]
[White "Iskusnyh, Sergei"]
[Black "Hamidi, Amir Mohammad"]
[WhiteFideId "4120027"]
[BlackFideId "12563285"]
[WhiteElo "2492"]
[BlackElo "2273"]
[Result "0-1"]
[Round "06"]
[TimeControl "180+1"]
[Date "2022.04.05"]
[WhiteClock "0:00:01"]
[BlackClock "0:02:12"]

1. d4 {[%clk 0:02:59]}  Nf6 {[%clk 0:02:58]} 2. c4 {[%clk 0:03:00]}  g6 {[%clk 0:02:58]} 3. g3 {[%clk 0:03:00]}  Bg7 {[%clk 0:02:58]} 4. Bg2 {[%clk 0:03:00]}  O-O {[%clk 0:02:59]} 5. Nc3 {[%clk 0:03:00]}  d6 {[%clk 0:02:59]} 6. Nf3 {[%clk 0:03:01]}  Nbd7 {[%clk 0:03:00]} 7. O-O {[%clk 0:03:01]}  e5 {[%clk 0:03:00]} 8. e4 {[%clk 0:03:01]}  exd4 {[%clk 0:03:01]} 9. Nxd4 {[%clk 0:03:01]}  Re8 {[%clk 0:03:02]} 10. h3 {[%clk 0:02:57]}  Nc5 {[%clk 0:03:02]} 11. Qc2 {[%clk 0:02:55]}  a5 {[%clk 0:03:02]} 12. Ndb5 {[%clk 0:02:52]}  c6 {[%clk 0:03:01]} 13. Na3 {[%clk 0:02:29]}  Nfd7 {[%clk 0:03:00]} 14. Bf4 {[%clk 0:02:24]}  Ne5 {[%clk 0:03:01]} 15. Rad1 {[%clk 0:02:23]}  Qc7 {[%clk 0:03:01]} 16. Be3 {[%clk 0:01:51]}  Be6 {[%clk 0:02:54]} 17. b3 {[%clk 0:01:36]}  Bc8 {[%clk 0:02:50]} 18. Nab5 {[%clk 0:01:29]}  cxb5 {[%clk 0:02:47]} 19. Nxb5 {[%clk 0:01:30]}  Qe7 {[%clk 0:02:48]} 20. Nxd6 {[%clk 0:01:28]}  Ne6 {[%clk 0:02:44]} 21. f4 {[%clk 0:01:23]}  Nc6 {[%clk 0:02:43]} 22. Nxe8 {[%clk 0:01:12]}  Qxe8 {[%clk 0:02:37]} 23. e5 {[%clk 0:01:10]}  Bd7 {[%clk 0:02:36]} 24. Kh2 {[%clk 0:01:05]}  Nb4 {[%clk 0:02:36]} 25. Qd2 {[%clk 0:00:57]}  Bc6 {[%clk 0:02:36]} 26. Bb6 {[%clk 0:00:41]}  Bf8 {[%clk 0:02:32]} 27. a3 {[%clk 0:00:38]}  Bxg2 {[%clk 0:02:29]} 28. Qxg2 {[%clk 0:00:37]}  Nc6 {[%clk 0:02:30]} 29. Qb2 {[%clk 0:00:32]}  Ng7 {[%clk 0:02:27]} 30. Rd5 {[%clk 0:00:26]}  h5 {[%clk 0:02:25]} 31. h4 {[%clk 0:00:26]}  Nf5 {[%clk 0:02:25]} 32. Rfd1 {[%clk 0:00:24]}  Nh6 {[%clk 0:02:25]} 33. Kg2 {[%clk 0:00:16]}  Qe6 {[%clk 0:02:24]} 34. Bc5 {[%clk 0:00:08]}  Qg4 {[%clk 0:02:22]} 35. Bxf8 {[%clk 0:00:07]}  Rxf8 {[%clk 0:02:23]} 36. Kh2 {[%clk 0:00:05]}  Nf5 {[%clk 0:02:21]} 37. R5d3 {[%clk 0:00:04]}  Nxg3 {[%clk 0:02:18]} 38. Qg2 {[%clk 0:00:01]}  Qxh4+ {[%clk 0:02:17]} 39. Qh3 {[%clk 0:00:01]}  Qxh3+ {[%clk 0:02:15]} 40. Kxh3 {[%clk 0:00:02]}  Nf5 {[%clk 0:02:16]} 41. Rd7 {[%clk 0:00:01]}  Rb8 {[%clk 0:02:16]} 42. Rc7 {[%clk 0:00:01]}  Nd8 {[%clk 0:02:11]} 43. Rdd7 {[%clk 0:00:01]}  Ng7 {[%clk 0:02:11]} 44. b4 {[%clk 0:00:01]}  Nge6 {[%clk 0:02:12]} 0-1


[Site "https://www.chess.com"]

[Event "Titled Tuesday Blitz April 05 Late 2022"]
[White "Jobava, Baadur"]
[Black "Kosakowski, Jakub"]
[WhiteFideId "13601520"]
[BlackFideId "1185080"]
[WhiteElo "2617"]
[BlackElo "2454"]
[Result "1-0"]
[Round "06"]
[TimeControl "180+1"]
[Date "2022.04.05"]
[WhiteClock "0:00:39"]
[BlackClock "0:00:04"]

1. b3 {[%clk 0:03:00]}  g6 {[%clk 0:02:56]} 2. Bb2 {[%clk 0:03:01]}  Nf6 {[%clk 0:02:57]} 3. Bxf6 {[%clk 0:03:01]}  exf6 {[%clk 0:02:57]} 4. c4 {[%clk 0:03:02]}  d5 {[%clk 0:02:57]} 5. cxd5 {[%clk 0:03:02]}  Qxd5 {[%clk 0:02:58]} 6. Nc3 {[%clk 0:03:02]}  Qa5 {[%clk 0:02:57]} 7. a3 {[%clk 0:03:02]}  c6 {[%clk 0:02:57]} 8. b4 {[%clk 0:03:02]}  Qd8 {[%clk 0:02:56]} 9. e3 {[%clk 0:03:01]}  a5 {[%clk 0:02:53]} 10. b5 {[%clk 0:03:00]}  Bg7 {[%clk 0:02:52]} 11. bxc6 {[%clk 0:02:57]}  bxc6 {[%clk 0:02:48]} 12. Bc4 {[%clk 0:02:54]}  O-O {[%clk 0:02:47]} 13. Nge2 {[%clk 0:02:54]}  Nd7 {[%clk 0:02:45]} 14. d4 {[%clk 0:02:54]}  f5 {[%clk 0:02:44]} 15. O-O {[%clk 0:02:52]}  c5 {[%clk 0:02:43]} 16. Rc1 {[%clk 0:02:50]}  cxd4 {[%clk 0:02:43]} 17. Nxd4 {[%clk 0:02:50]}  Bb7 {[%clk 0:02:43]} 18. Bd5 {[%clk 0:02:48]}  Bxd5 {[%clk 0:01:59]} 19. Nxd5 {[%clk 0:02:49]}  Ne5 {[%clk 0:02:00]} 20. Nc6 {[%clk 0:02:49]}  Nxc6 {[%clk 0:02:00]} 21. Rxc6 {[%clk 0:02:49]}  Re8 {[%clk 0:01:54]} 22. g3 {[%clk 0:02:48]}  Rc8 {[%clk 0:01:50]} 23. Rxc8 {[%clk 0:02:33]}  Qxc8 {[%clk 0:01:51]} 24. Qa4 {[%clk 0:02:33]}  Qa8 {[%clk 0:01:34]} 25. Rd1 {[%clk 0:02:26]}  Rd8 {[%clk 0:01:28]} 26. Ne7+ {[%clk 0:02:19]}  Kf8 {[%clk 0:01:26]} 27. Rxd8+ {[%clk 0:02:17]}  Qxd8 {[%clk 0:01:27]} 28. Nc6 {[%clk 0:02:18]}  Qd7 {[%clk 0:01:21]} 29. Qb5 {[%clk 0:02:17]}  Bf6 {[%clk 0:01:18]} 30. a4 {[%clk 0:02:16]}  h5 {[%clk 0:01:01]} 31. Nxa5 {[%clk 0:02:15]}  Qd1+ {[%clk 0:01:01]} 32. Kg2 {[%clk 0:02:14]}  h4 {[%clk 0:01:02]} 33. Nc6 {[%clk 0:01:19]}  Kg7 {[%clk 0:00:36]} 34. a5 {[%clk 0:01:11]}  Bc3 {[%clk 0:00:17]} 35. a6 {[%clk 0:01:09]}  Be1 {[%clk 0:00:17]} 36. Nd4 {[%clk 0:01:02]}  h3+ {[%clk 0:00:14]} 37. Kxh3 {[%clk 0:01:01]}  Bxf2 {[%clk 0:00:15]} 38. Nxf5+ {[%clk 0:00:54]}  gxf5 {[%clk 0:00:15]} 39. Qb2+ {[%clk 0:00:50]}  Kg6 {[%clk 0:00:14]} 40. Qxf2 {[%clk 0:00:51]}  Qa4 {[%clk 0:00:10]} 41. Qe2 {[%clk 0:00:50]}  f6 {[%clk 0:00:09]} 42. Kg2 {[%clk 0:00:49]}  Qe4+ {[%clk 0:00:08]} 43. Kf2 {[%clk 0:00:49]}  Qa4 {[%clk 0:00:09]} 44. h3 {[%clk 0:00:47]}  Qa1 {[%clk 0:00:09]} 45. g4 {[%clk 0:00:46]}  Qa4 {[%clk 0:00:08]} 46. gxf5+ {[%clk 0:00:46]}  Kf7 {[%clk 0:00:07]} 47. Qh5+ {[%clk 0:00:44]}  Ke7 {[%clk 0:00:07]} 48. a7 {[%clk 0:00:44]}  Kd6 {[%clk 0:00:04]} 49. Qf7 {[%clk 0:00:39]} 1-0


[Site "https://www.chess.com"]

[Event "Titled Tuesday Blitz April 05 Late 2022"]
[White "Jumabayev, Rinat"]
[Black "Dubov, Daniil"]
[WhiteFideId "13702661"]
[BlackFideId "24126055"]
[WhiteElo "2561"]
[BlackElo "2791"]
[Result "1/2-1/2"]
[Round "06"]
[TimeControl "180+1"]
[Date "2022.04.05"]
[WhiteClock "0:00:06"]
[BlackClock "0:00:06"]

1. d4 {[%clk 0:03:00]}  Nf6 {[%clk 0:02:59]} 2. Bf4 {[%clk 0:03:01]}  d5 {[%clk 0:02:58]} 3. e3 {[%clk 0:03:01]}  g6 {[%clk 0:02:57]} 4. Nf3 {[%clk 0:02:59]}  Bg7 {[%clk 0:02:57]} 5. h3 {[%clk 0:02:57]}  O-O {[%clk 0:02:57]} 6. Bd3 {[%clk 0:02:56]}  c5 {[%clk 0:02:57]} 7. c3 {[%clk 0:02:56]}  Nc6 {[%clk 0:02:57]} 8. Nbd2 {[%clk 0:02:56]}  Nd7 {[%clk 0:02:55]} 9. O-O {[%clk 0:02:40]}  e5 {[%clk 0:02:48]} 10. dxe5 {[%clk 0:02:38]}  Ndxe5 {[%clk 0:02:47]} 11. Bb5 {[%clk 0:02:27]}  Qb6 {[%clk 0:02:40]} 12. Qb3 {[%clk 0:01:40]}  Na5 {[%clk 0:02:05]} 13. Qa4 {[%clk 0:01:39]}  a6 {[%clk 0:01:59]} 14. Bxe5 {[%clk 0:01:31]}  axb5 {[%clk 0:01:55]} 15. Qf4 {[%clk 0:01:21]}  f6 {[%clk 0:01:40]} 16. Bd6 {[%clk 0:01:19]}  g5 {[%clk 0:01:27]} 17. Qg3 {[%clk 0:01:17]}  Re8 {[%clk 0:01:26]} 18. Nb3 {[%clk 0:00:51]}  Nxb3 {[%clk 0:01:24]} 19. axb3 {[%clk 0:00:52]}  Ra6 {[%clk 0:01:07]} 20. Rxa6 {[%clk 0:00:43]}  bxa6 {[%clk 0:01:08]} 21. b4 {[%clk 0:00:43]}  c4 {[%clk 0:00:57]} 22. Nd4 {[%clk 0:00:39]}  h5 {[%clk 0:00:42]} 23. Bc5 {[%clk 0:00:35]}  Qb7 {[%clk 0:00:32]} 24. Qd6 {[%clk 0:00:30]}  Qd7 {[%clk 0:00:30]} 25. Qxd7 {[%clk 0:00:23]}  Bxd7 {[%clk 0:00:30]} 26. Ra1 {[%clk 0:00:24]}  Bc8 {[%clk 0:00:29]} 27. Nc6 {[%clk 0:00:24]}  Kf7 {[%clk 0:00:22]} 28. Rd1 {[%clk 0:00:18]}  Bd7 {[%clk 0:00:19]} 29. Nd4 {[%clk 0:00:16]}  Ra8 {[%clk 0:00:18]} 30. Ra1 {[%clk 0:00:16]}  g4 {[%clk 0:00:17]} 31. h4 {[%clk 0:00:16]}  f5 {[%clk 0:00:16]} 32. g3 {[%clk 0:00:16]}  Bxd4 {[%clk 0:00:11]} 33. Bxd4 {[%clk 0:00:10]}  Bc6 {[%clk 0:00:11]} 34. f3 {[%clk 0:00:10]}  gxf3 {[%clk 0:00:10]} 35. Kf2 {[%clk 0:00:11]}  Bb7 {[%clk 0:00:10]} 36. Kxf3 {[%clk 0:00:11]}  Rg8 {[%clk 0:00:10]} 37. Kf2 {[%clk 0:00:12]}  Ke6 {[%clk 0:00:10]} 38. Bb6 {[%clk 0:00:11]}  Rg4 {[%clk 0:00:10]} 39. Bd4 {[%clk 0:00:11]}  Rg8 {[%clk 0:00:10]} 40. Re1 {[%clk 0:00:12]}  Rg4 {[%clk 0:00:10]} 41. Bb6 {[%clk 0:00:11]}  Rg8 {[%clk 0:00:08]} 42. Bc7 {[%clk 0:00:12]}  Rg4 {[%clk 0:00:08]} 43. Bf4 {[%clk 0:00:12]}  Rg8 {[%clk 0:00:08]} 44. Rd1 {[%clk 0:00:13]}  Rg6 {[%clk 0:00:07]} 45. Rd4 {[%clk 0:00:13]}  Rg8 {[%clk 0:00:08]} 46. Kf3 {[%clk 0:00:13]}  Rg4 {[%clk 0:00:08]} 47. Kf2 {[%clk 0:00:12]}  Rg8 {[%clk 0:00:08]} 48. Bg5 {[%clk 0:00:13]}  Rg6 {[%clk 0:00:08]} 49. Kf3 {[%clk 0:00:13]}  Ke5 {[%clk 0:00:07]} 50. Kf2 {[%clk 0:00:08]}  Ke6 {[%clk 0:00:07]} 51. Rd1 {[%clk 0:00:08]}  Ke5 {[%clk 0:00:08]} 52. Ra1 {[%clk 0:00:08]}  Ke4 {[%clk 0:00:07]} 53. Ke2 {[%clk 0:00:07]}  Ke5 {[%clk 0:00:07]} 54. Rd1 {[%clk 0:00:05]}  Ke6 {[%clk 0:00:07]} 55. Bf4 {[%clk 0:00:05]}  Rg8 {[%clk 0:00:07]} 56. Kf2 {[%clk 0:00:05]}  Rg6 {[%clk 0:00:06]} 57. Ke2 {[%clk 0:00:05]}  Rg8 {[%clk 0:00:06]} 58. Kf2 {[%clk 0:00:06]} 1/2-1/2


[Site "https://www.chess.com"]

[Event "Titled Tuesday Blitz April 05 Late 2022"]
[White "Kamsky, Gata"]
[Black "Jacobson, Brandon"]
[WhiteFideId "2000024"]
[BlackFideId "30901561"]
[WhiteElo "2645"]
[BlackElo "2362"]
[Result "1/2-1/2"]
[Round "06"]
[TimeControl "180+1"]
[Date "2022.04.05"]
[WhiteClock "0:00:24"]
[BlackClock "0:00:13"]

1. e4 {[%clk 0:03:00]}  c5 {[%clk 0:03:00]} 2. Nf3 {[%clk 0:03:00]}  d6 {[%clk 0:03:00]} 3. d4 {[%clk 0:02:59]}  cxd4 {[%clk 0:03:01]} 4. Qxd4 {[%clk 0:02:59]}  Nf6 {[%clk 0:03:02]} 5. Bb5+ {[%clk 0:02:53]}  Bd7 {[%clk 0:02:59]} 6. Bxd7+ {[%clk 0:02:51]}  Qxd7 {[%clk 0:02:54]} 7. O-O {[%clk 0:02:51]}  Nc6 {[%clk 0:02:54]} 8. Qd3 {[%clk 0:02:50]}  g6 {[%clk 0:02:55]} 9. c4 {[%clk 0:02:48]}  Bg7 {[%clk 0:02:53]} 10. Nc3 {[%clk 0:02:48]}  O-O {[%clk 0:02:54]} 11. Bd2 {[%clk 0:02:45]}  Rac8 {[%clk 0:02:50]} 12. b3 {[%clk 0:02:44]}  a6 {[%clk 0:02:49]} 13. Rac1 {[%clk 0:02:40]}  Rfd8 {[%clk 0:02:41]} 14. Rfd1 {[%clk 0:02:39]}  Ng4 {[%clk 0:02:36]} 15. Nd5 {[%clk 0:02:36]}  Nge5 {[%clk 0:02:31]} 16. Qe2 {[%clk 0:02:31]}  Qg4 {[%clk 0:02:16]} 17. h3 {[%clk 0:02:10]}  Nxf3+ {[%clk 0:02:12]} 18. Qxf3 {[%clk 0:02:10]}  Qxf3 {[%clk 0:02:13]} 19. gxf3 {[%clk 0:02:10]}  e6 {[%clk 0:02:00]} 20. Nb6 {[%clk 0:02:06]}  Rc7 {[%clk 0:02:00]} 21. Be3 {[%clk 0:02:05]}  Kf8 {[%clk 0:01:22]} 22. Kg2 {[%clk 0:02:03]}  Ke7 {[%clk 0:01:20]} 23. Rd2 {[%clk 0:01:58]}  Ne5 {[%clk 0:01:18]} 24. Rcd1 {[%clk 0:01:54]}  Nc6 {[%clk 0:01:01]} 25. Bg5+ {[%clk 0:01:43]}  f6 {[%clk 0:00:59]} 26. Bf4 {[%clk 0:01:40]}  Ne5 {[%clk 0:00:58]} 27. Be3 {[%clk 0:01:39]}  Nf7 {[%clk 0:00:52]} 28. b4 {[%clk 0:01:34]}  Ke8 {[%clk 0:00:33]} 29. c5 {[%clk 0:01:29]}  dxc5 {[%clk 0:00:33]} 30. Bxc5 {[%clk 0:01:29]}  Rxd2 {[%clk 0:00:29]} 31. Rxd2 {[%clk 0:01:28]}  Bf8 {[%clk 0:00:30]} 32. Bxf8 {[%clk 0:01:21]}  Kxf8 {[%clk 0:00:31]} 33. f4 {[%clk 0:01:16]}  Ke7 {[%clk 0:00:30]} 34. a4 {[%clk 0:01:12]}  Nd6 {[%clk 0:00:29]} 35. f3 {[%clk 0:01:11]}  Rc3 {[%clk 0:00:25]} 36. a5 {[%clk 0:01:04]}  Rc7 {[%clk 0:00:19]} 37. h4 {[%clk 0:00:59]}  Nc4 {[%clk 0:00:19]} 38. Nxc4 {[%clk 0:00:55]}  Rxc4 {[%clk 0:00:20]} 39. Rb2 {[%clk 0:00:55]}  f5 {[%clk 0:00:19]} 40. exf5 {[%clk 0:00:52]}  exf5 {[%clk 0:00:18]} 41. Kg3 {[%clk 0:00:52]}  Kd7 {[%clk 0:00:18]} 42. b5 {[%clk 0:00:52]}  Kc7 {[%clk 0:00:10]} 43. bxa6 {[%clk 0:00:52]}  bxa6 {[%clk 0:00:11]} 44. h5 {[%clk 0:00:52]}  Ra4 {[%clk 0:00:09]} 45. hxg6 {[%clk 0:00:50]}  hxg6 {[%clk 0:00:10]} 46. Rb6 {[%clk 0:00:49]}  Rxa5 {[%clk 0:00:10]} 47. Rxg6 {[%clk 0:00:50]}  Ra4 {[%clk 0:00:09]} 48. Rf6 {[%clk 0:00:49]}  Ra5 {[%clk 0:00:09]} 49. Kh4 {[%clk 0:00:48]}  Ra3 {[%clk 0:00:10]} 50. Kg5 {[%clk 0:00:48]}  Rxf3 {[%clk 0:00:09]} 51. Rxa6 {[%clk 0:00:47]}  Kd7 {[%clk 0:00:09]} 52. Kxf5 {[%clk 0:00:41]}  Ke7 {[%clk 0:00:09]} 53. Ra7+ {[%clk 0:00:41]}  Kf8 {[%clk 0:00:10]} 54. Kg5 {[%clk 0:00:41]}  Rb3 {[%clk 0:00:09]} 55. f5 {[%clk 0:00:40]}  Rb6 {[%clk 0:00:09]} 56. Rh7 {[%clk 0:00:39]}  Ra6 {[%clk 0:00:09]} 57. Rd7 {[%clk 0:00:38]}  Rb6 {[%clk 0:00:09]} 58. Kf4 {[%clk 0:00:35]}  Ra6 {[%clk 0:00:09]} 59. Ke5 {[%clk 0:00:34]}  Rb6 {[%clk 0:00:10]} 60. Rc7 {[%clk 0:00:33]}  Ra6 {[%clk 0:00:10]} 61. Rd7 {[%clk 0:00:33]}  Rb6 {[%clk 0:00:10]} 62. f6 {[%clk 0:00:30]}  Rb1 {[%clk 0:00:11]} 63. Rd8+ {[%clk 0:00:21]}  Kf7 {[%clk 0:00:11]} 64. Rd7+ {[%clk 0:00:22]}  Kf8 {[%clk 0:00:11]} 65. f7 {[%clk 0:00:21]}  Re1+ {[%clk 0:00:11]} 66. Kf6 {[%clk 0:00:22]}  Rf1+ {[%clk 0:00:12]} 67. Ke6 {[%clk 0:00:22]}  Re1+ {[%clk 0:00:12]} 68. Kf6 {[%clk 0:00:23]}  Rf1+ {[%clk 0:00:13]} 69. Ke6 {[%clk 0:00:23]}  Re1+ {[%clk 0:00:13]} 70. Kf6 {[%clk 0:00:24]} 1/2-1/2


[Site "https://www.chess.com"]